Cogmind - Beta 13 @@@ ROGUE MODE // 2024.03.10 @ 22:53:07 Player: rCartos Result: Destroyed by G-34 Mercenary with Small Laser Performance ------------- Evolutions (1) 500 Regions Visited (3) 600 Robots Destroyed (4) 20 Value Destroyed (125) 125 Prototype IDs (0) 0 Alien Tech Used (0) 0 Bonus (0) 0 TOTAL SCORE: 1245 Bonus ------- None Cogmind --------- Core Integrity 0/400 Matter 262/300 Energy 67/100 System Corruption 2% Temperature Cool (55) Movement Core (250) Ox4 Location -9/Materials Parts ------- > --- POWER (1) -------- (None) > --- PROPULSION (4) --- (None) > --- UTILITY (2) ------ Reactive Plating > --- WEAPON (2) ------- Beam Rifle Light Assault Rifle > --- INVENTORY (5) ---- Ion Engine Nuclear Core Small Battery (100) Peak State ------------ > --- POWER ------------ Nuclear Core > --- PROPULSION ------- Aluminum Leg Aluminum Leg > --- UTILITY ---------- Small Storage Unit Reactive Plating > --- WEAPON ----------- Makeshift Shrapnel Gun Mining Claw > --- INVENTORY -------- Ion Engine Nuclear Core Nuclear Core Small Battery Reactive Plating Light Assault Rifle [Rating: 15] Favorites ----------- Power Ion Engine Engine Ion Engine Power Core Nuclear Core Propulsion Aluminum Leg Leg Aluminum Leg Wheel Wheel Utility Small Storage Unit Device Terrain Scanner Storage Small Storage Unit Protection Reactive Plating Weapon Mining Claw Energy Gun Medium Laser Ballistic Gun Makeshift Shrapnel Gun Slashing Weapon Mining Claw Build | -11 -10 -10 -9 ------- Run | Yrd Mat Min Mat Slots Evolved 2 | . . . 2 Power . | . . . . Propulsion 2 | . . . 2 Utility . | . . . . Weapon . | . . . . Parts Attached 22 | 6 2 6 8 Power 4 | 1 . 1 2 Engine 3 | 1 . 1 1 Core 1 | . . . 1 Reactor . | . . . . Propulsion 6 | 2 . 4 . Treads . | . . . . Leg 4 | . . 4 . Wheel 2 | 2 . . . Hover . | . . . . Flight . | . . . . Utility 5 | 1 1 . 3 Device 2 | . 1 . 1 Storage 1 | 1 . . . Processor . | . . . . Hackware . | . . . . Protection 2 | . . . 2 Artifact . | . . . . Weapon 7 | 2 1 1 3 Energy Gun 2 | 1 . . 1 Energy Cannon . | . . . . Ballistic Gun 4 | 1 . 1 2 Ballistic Cannon . | . . . . Launcher . | . . . . Special Weapon . | . . . . Impact Weapon . | . . . . Slashing Weapon 1 | . 1 . . Piercing Weapon . | . . . . Special Melee Weapon . | . . . . Unidentified Prototypes . | . . . . Parts Lost 10 | . . 3 7 Power 2 | . . 1 1 Propulsion 4 | . . 2 2 Utility 2 | . . . 2 Weapon 2 | . . . 2 Highest Loss Streak 5 | . . 3 5 To Critical Strikes . | . . . . Average Slot Usage (%) 79 | . 97 96 64 Engine 6 | . 14 13 . Core 4 | . . . 8 Leg 15 | . . 18 17 Wheel 5 | . 28 6 . Device 9 | . 12 14 6 Storage 12 | . 14 14 10 Protection 2 | . . . 4 Ballistic Gun 10 | . 14 14 7 Slashing Weapon 10 | . 5 14 9 Naked Turns . | . . . . Heaviest Build 26 | 13 14 15 26 Greatest Support 20 | 20 20 20 20 Greatest Overweight (x) 5 | 2 . 4 5 Average Overweight (x) . | . . . . Largest Inventory Capacity 8 | 8 8 8 8 Average Capacity 7 | 6 8 8 7 Most Carried 8 | 1 2 5 8 Average Carried 4 | . 1 3 6 Final Capacity 8 | 8 8 8 5 Final Carried 3 | 1 2 3 3 Class Distribution -------------------- 100% | Mutant Dominant Class ---------------- Mutant | -10/Materials Mutant | -10/Mines Mutant | -9/Materials Resources | -11 -10 -10 -9 ----------- Run | Yrd Mat Min Mat Matter Collected 330 | 230 . 50 50 Remotely . | . . . . Salvage Created 150 | . . 87 63 Parts 10 | . . 4 6 Haulers Intercepted . | . . . . Recyclers Shooed . | . . . . Parts Field Recycled . | . . . . Retrieved Matter . | . . . . Parts Self-Destructed . | . . . . Prevented . | . . . . Kills | -11 -10 -10 -9 ------- Run | Yrd Mat Min Mat Combat Hostiles Destroyed 4 | . . 2 2 Melee 3 | . . 2 1 Guns 1 | . . . 1 Classes Destroyed 2 | . . 1 1 Swarmer 1 | . . . 1 Grunt 3 | . . 2 1 Best Kill Streak 2 | . . 2 1 Combat Bots Only 2 | . . 2 1 Max Kills in Single Turn 1 | . . 1 1 Gunslinging . | . . . . Exploded . | . . . . Melee 1 | . . 1 1 Uniques/NPCs Destroyed . | . . . . Combat | -11 -10 -10 -9 -------- Run | Yrd Mat Min Mat Hostile Shots Fired 154 | . . 46 108 Missed 45 | . . 12 33 Damage Taken 1707 | . . 758 949 Core 629 | . . 223 406 Absorbed by Shields . | . . . . Ignored by Resistances 8 | . . . 8 Core Remaining (%) 55 | 100 . 10 . Volleys Fired 2 | . . . 2 Largest 2 | . . . 2 Hottest 76 | . . . 76 Shots Fired 4 | . . . 4 Gun 4 | . . . 4 Cannon . | . . . . Launcher . | . . . . Special . | . . . . Kinetic 2 | . . . 2 Thermal 2 | . . . 2 Explosive . | . . . . Electromagnetic . | . . . . Robot Hit Streak 2 | . . . 2 Robot Miss Streak 1 | . . . 1 Penetration Max . | . . . . Secondary Targets . | . . . . Shots Hit Robots 18 | . . 9 9 Core Hits 6 | . . 3 3 Critical Kills . | . . . . Critical Parts Destroyed . | . . . . Critical Strikes . | . . . . Melee Attacks 27 | . 1 12 14 Impact . | . . . . Slashing 27 | . 1 12 14 Piercing . | . . . . Sneak Attacks 1 | . . 1 . Combat Hostiles . | . . . . Follow-up Attacks . | . . . . Damage Inflicted 423 | . . 234 189 Guns 25 | . . . 25 Cannons . | . . . . Explosions . | . . . . Melee 397 | . . 234 163 Ramming 1 | . . . 1 Kinetic 10 | . . . 10 Thermal 15 | . . . 15 Explosive . | . . . . Electromagnetic . | . . . . Impact . | . . . . Slashing 397 | . . 234 163 Piercing . | . . . . Highest Corruption 2 | . . . 2 Average Corruption 2 | . . . 2 Corruption Purged . | . . . . Corruption Blocked . | . . . . Overload Shots . | . . . . Overflow Damage 45 | . . 25 20 Projectiles . | . . . . Explosions . | . . . . Melee 45 | . . 25 20 Knockbacks . | . . . . Impact . | . . . . Kinetic . | . . . . Secondary . | . . . . Self-Inflicted Damage . | . . . . Shots . | . . . . Rammed 1 | . . . 1 Targets Rammed 1 | . . . 1 Kicked . | . . . . Crushed . | . . . . Highest Temperature 49 | . . . 49 Average Temperature 20 | . . . 20 Received Heat Transfer 687 | . . 168 519 Siege Activations . | . . . . Robots Corrupted . | . . . . Combat Hostiles . | . . . . Parts Fried . | . . . . Impact Corruptions . | . . . . Robots Melted . | . . . . Combat Hostiles . | . . . . Parts Melted . | . . . . Heat Transferred 37 | . . . 37 Parts Sabotaged . | . . . . Parts Stolen . | . . . . Parts Stripped . | . . . . Power Chain Reactions . | . . . . Alert | -11 -10 -10 -9 ------- Run | Yrd Mat Min Mat Peak Influence 60 | . 27 60 30 Initial 11 | . . 10 11 Average 21 | . 14 51 10 Maximum Alert Level . | . . . . Low Security (%) 100 | 100 100 100 100 Level 1 . | . . . . Level 2 . | . . . . Level 3 . | . . . . Level 4 . | . . . . Level 5 . | . . . . High Security . | . . . . Max Security . | . . . . Squads Dispatched 2 | . 1 . 1 Investigation 1 | . . . 1 Extermination . | . . . . Reinforcement 1 | . 1 . . Assault . | . . . . Garrison . | . . . . Intercept . | . . . . Searches Triggered . | . . . . Construction Impeded . | . . . . Haulers Reinforced . | . . . . Active Scanning Responses . | . . . . Cargo Convoy Interrupts . | . . . . Stealth | -11 -10 -10 -9 --------- Run | Yrd Mat Min Mat Distress Signals 2 | . . . 2 Communications Jammed . | . . . . Distress Signals . | . . . . Times Spotted 22 | . 1 7 14 Peak Tracking Total 9 | . 1 4 9 Tactical Retreats 1 | . . . 1 Traps | -11 -10 -10 -9 ------- Run | Yrd Mat Min Mat Traps Triggered 1 | . . . 1 Indirectly . | . . . . Trap Hack Attempts . | . . . . Triggered . | . . . . Disarmed . | . . . . Reprogrammed . | . . . . Reused . | . . . . Traps Extracted . | . . . . Installed . | . . . . Triggered . | . . . . Machines | -11 -10 -10 -9 ---------- Run | Yrd Mat Min Mat Machines Disabled . | . . . . Max in Single Turn . | . . . . Machines Repaired . | . . . . Machines Dismantled . | . . . . Machines Sabotaged . | . . . . Overloaded Fab Kills . | . . . . Hacking | -11 -10 -10 -9 --------- Run | Yrd Mat Min Mat Machines Accessed 7 | . 4 . 3 Terminals 7 | . 4 . 3 Fabricators . | . . . . Repair Stations . | . . . . Recycling Units . | . . . . Scanalyzers . | . . . . Garrison Access . | . . . . Total Hacks 23 | . 14 . 9 Successful 12 | . 7 . 5 Failed 11 | . 7 . 4 Catastrophic 2 | . . . 2 Database Lockouts . | . . . . Manual 24 | . 15 . 9 Terminals 23 | . 14 . 9 Fabricators . | . . . . Repair Stations . | . . . . Recycling Units . | . . . . Scanalyzers . | . . . . Garrison Access . | . . . . Terminal Hacks 2 | . 1 . 1 Unreport Threat 1 | . . . 1 Zone Layout 1 | . 1 . . Fabricator Hacks . | . . . . Repair Station Hacks . | . . . . Recycling Unit Hacks . | . . . . Scanalyzer . | . . . . Garrison Access Hacks . | . . . . Unauthorized Hacks 10 | . 6 . 4 Terminals 10 | . 6 . 4 Track 4 | . 3 . 1 Botnet 6 | . 3 . 3 Fabricators . | . . . . Repair Stations . | . . . . Recycling Units . | . . . . Scanalyzers . | . . . . Garrison Access . | . . . . Data Cores Recovered . | . . . . Used . | . . . . Hacking Detections 6 | . 3 . 3 Full Trace Events 2 | . . . 2 Feedback Events . | . . . . Feedback Blocked . | . . . . Robot Schematics Acquired . | . . . . Robots Built . | . . . . Authchips . | . . . . Time . | . . . . Total Robot Build Rating . | . . . . Part Schematics Acquired . | . . . . Parts Built . | . . . . Authchips . | . . . . Time . | . . . . Total Part Build Rating . | . . . . Parts Repaired . | . . . . Time . | . . . . Parts Recycled . | . . . . Recycled Matter . | . . . . Retrieved Matter . | . . . . Retrieved Components . | . . . . Parts Scanalyzed . | . . . . Part Schematics Acquired . | . . . . Parts Damaged . | . . . . Bothacking | -11 -10 -10 -9 ------------ Run | Yrd Mat Min Mat Used RIF Installer . | . . . . Robots Hacked . | . . . . Non-combat . | . . . . Combat . | . . . . Robot Hacks Applied . | . . . . Relay Couplers Released . | . . . . Fabnet Peak Effective % . | . . . . Robots Rewired . | . . . . Allies Hacked . | . . . . Hacks Repelled . | . . . . Allies | -11 -10 -10 -9 -------- Run | Yrd Mat Min Mat Total Allies . | . . . . Largest Group . | . . . . Highest-Rated Group . | . . . . Highest-Rated Ally . | . . . . Total Orders . | . . . . Ally Attacks . | . . . . Total Damage . | . . . . Kills . | . . . . Allies Corrupted . | . . . . Allies Melted . | . . . . Intel | -11 -10 -10 -9 ------- Run | Yrd Mat Min Mat Robot Analysis Total . | . . . . Derelict Logs Recovered . | . . . . Drone Launches . | . . . . Drone Recoveries . | . . . . Exploration | -11 -10 -10 -9 ------------- Run | Yrd Mat Min Mat Turns Passed 866 | 81 106 257 422 Spaces Moved 606 | 76 121 170 239 Core 69 | 33 . 8 28 Treads . | . . . . Legs 346 | . . 135 211 Wheels 191 | 43 121 27 . Hover . | . . . . Flight . | . . . . Fastest Speed 50 | 50 80 80 100 Average Speed 119 | 93 80 120 147 Slowest Speed 300 | 150 80 250 300 Overloaded Moves . | . . . . Propulsion Burnouts . | . . . . Robots Hopped . | . . . . Cave-ins Triggered . | . . . . Exploration Rate (%) 18 | 4 22 28 20 Regions Visited 3 Branch Regions 1 Pre-discovered Areas . | . . . . Known Exits Taken . | . . . . Unknown Exits Taken 3 | 1 1 1 . Scrap Searched . | . . . . Spaces Dug . | . . . . Terrain Destroyed . | . . . . Melee . | . . . . Projectile . | . . . . AOE . | . . . . Terrain Rammed . | . . . . Walls Destroyed . | . . . . Machines Disabled . | . . . . Actions | -11 -10 -10 -9 --------- Run | Yrd Mat Min Mat Total 682 | 82 127 198 275 Wait 8 | . 1 4 3 Move 603 | 75 120 169 239 Hop . | . . . . Pick Up 13 | 1 2 5 5 Fast Attach 9 | 6 1 . 2 Attach 10 | . 1 4 5 Detach 1 | . . . 1 Swap 3 | . . 2 1 Drop 5 | . 1 2 2 Fire 2 | . . . 2 Melee 27 | . 1 12 14 Ram 1 | . . . 1 Kick . | . . . . Crush . | . . . . Escape Stasis . | . . . . Rewire . | . . . . Trap . | . . . . Miscellaneous . | . . . . Route ------- -11/Scrapyard -10/Materials -10/Mines (discovered 2 exits: *Mat x2) -9/Materials History --------- Turn | Location | Event 17 | -11/Scrapyard | Discovered new exit (range 16) 82 | -11/Scrapyard | Entered Materials 173 | -10/Materials | Discovered new exit (range 16) 188 | -10/Materials | Entered Mines 295 | -10/Mines | A weapon hastily lodged in a ceiling crevice suddenly fell to the ground 319 | -10/Mines | Build established: Mutant 393 | -10/Mines | Discovered new exit (range 6) 418 | -10/Mines | Discovered new exit (range 10) 420 | -10/Mines | Assembled infested the area 433 | -10/Mines | Core integrity fell below 50% 444 | -10/Mines | Core integrity fell below 20% 445 | -10/Mines | Entered Materials 445 | -9/Materials | Evolved 2 slots: Propulsion x2 467 | -9/Materials | Lost 3 parts (1p2n) 794 | -9/Materials | Core integrity fell below 50% 810 | -9/Materials | Core integrity fell below 20% 833 | -9/Materials | Lost 5 parts (1p2n1u1w) 867 | -9/Materials | Destroyed by G-34 Mercenary with Small Laser Last Messages --------------- R-06 Scavenger collects Aluminum Leg. R-06 Scavenger collects Heat Sink. Destroyed Lgt. Nuclear Core. Nuclear Core destroyed. Critical hit (Burn: +37). ECM Suite destroyed. Mining Claw destroyed. U-05 Engineer builds a Door. Triggered Shock Trap. The floor emits a surge of raw power. System corrupted (+2). U-05 Engineer lays Concrete. K-01 Serf cleans the Terminal. K-01 Serf cleans the Matter Pump. K-01 Serf cleans the Terminal. Sml. Storage Unit destroyed. K-01 Serf cleans the Terminal. Slammed into U-05 Engineer. W-16 Scout sends out distress signal. S-10 Pest destroyed. Map ----- +----------------------------------------------------+ | ?????????????????????????????????????????????????? | | ?????????????????????????????????????????????????? | | ?????????????????????????????????????????????????? | | ?????????????????????????????????????????????????? | | ?????????????????????????????????????????????????? | | ?????????????????????????????????????????????????? | | ?????????????????????????????????????????????????? | | ?????????????????????????????????????????????????? | | ?????????????????????????????????????????????????? | | ?????????????????????????????????????????????????? | | ?????????????????????????????????????????????????? | | ?????????????????????????????????????????????????? | | ?????????????????????????????????????????????????? | | ?????????????????????????????????????????????????? | | ?????????????????????????????????????????????????? | | ?????????????????????????????????????????????????? | | ?????????????????????????????????????????????????? | | ?????????????????????????????????????????????????? | | ?????????????????????????????????????????????????? | | ?????????????????????????????????????????????????? | | ?????????????????????????????????????????????????? | | ?????????????????????????????????????????????????? | | ?????????????????????????????????????????????????? | | ?????????????????????????????+#??????????????????? | | ??????????????? """ ####### ###???????????????? | | ??????????????? """ + ss@ [ w ????????? | | ??????????????? """ ####=## ###???????????????? | | ????????????????????????#g#?????????????????###+## | | ???????????????????????##/########??????????# | | ???????????????????????# ############ | | ???????????????????????# g """"" # ^ # """ | | ???????????????????????# ""T"" # # """" | | ???????????????????????# *! / + """" | | ???????????????????????# # """ # "" | | ???????????????????????# #^ """ ## "" | | ???????????????????????# ## """ ## | | ???????????????????????# ## ^ ## | | ???????????????????????############ ####### | | ??????????????????????????????????# " #?????? | | ??????????????????????????????????# T #?????? | | ??????????????????????????????????# " #?????? | | ????????????????????????????????? / #?????? | | ???????????????????????????????? # #?????? | | ??????????????????????????????? # ######?????? | | ????????????????????????????? ?# #??????????? | | ???????????????????????????? ??# #??????????? | | ???????????????????????????####???# #??????????? | | ??????????????????????????????????# #??????????? | | ??????????????????????????????????# #??????????? | | ??????????????????????????????????# #??????????? | +----------------------------------------------------+ Best States ------------- Heat Dissipation 28 Energy Generation 14 Energy Capacity 250 Matter Stores 300 Matter Capacity 300 Sight Range 16 Terrain Scan Range 14 Terrain Scan Density 10 ECM Strength 1 Armor Coverage 150 Resistance: KI 20 Evasion (%) 55 Item Schematics ----------------- None Robot Schematics ------------------ None Fabricated ------------ Nothing Alien Tech Used ----------------- None Achievements -------------- None Challenges ------------ None Game ------ Seed BottomlessHardenedCarapace Manual? 0 Play Time 00:10:41 Cumulative 11.2 hours Start 2024.03.10 @ 22:43:08 End 2024.03.10 @ 22:53:07 Sessions 1 Manual Loads 0 Difficulty Rogue Special Mode None Game No. 28 Rogue 28 Adventurer 0 Explorer 0 Win Type - Total 0 Types 0/0/0/0/0/0/0/0/0 Lore% 16 Gallery% 18 Achievement% 14 Wizard Run 0 Options --------- Layout 1 ASCII 0 Keyboard 0 Movement Arrows Keybinds 0 Fullscreen 1 Font 16/Terminus Map View 25x20 Zoom Use 99% Tactical HUD 0 Map Filters NONE Filters NONE Steam 1 RUN: e2c58cfb-e836-4b20-8472-324b5c28b239